[Event "Early-Titled-Tuesday-Blitz-April-02-2024"]
[Site "Chess.com"]
[Date "2024.04.02"]
[Round "1"]
[White "zverr1"]
[Black "Refrigerator1955"]
[Result "1-0"]
[WhiteElo "2556"]
[BlackElo "1945"]
[TimeControl "180+1"]
[EndTime "8:01:45 PDT"]
[Termination "zverr1 won by resignation"]

1. e4 {[%clk 0:03:00.8]} 1... c6 {[%clk 0:02:59.9]} 2. d4 {[%clk 0:02:58.2]}
2... d5 {[%clk 0:02:59.4]} 3. Nc3 {[%clk 0:02:59.1]} 3... dxe4 {[%clk
0:02:58.7]} 4. Nxe4 {[%clk 0:03:00]} 4... Nd7 {[%clk 0:02:58.4]} 5. Nf3 {[%clk
0:02:59.4]} 5... Ngf6 {[%clk 0:02:57.9]} 6. Neg5 {[%clk 0:02:59.7]} 6... h6
{[%clk 0:02:57.1]} 7. Ne6 {[%clk 0:02:31.6]} 7... fxe6 {[%clk 0:02:56.6]} 8. Bd3
{[%clk 0:02:31.6]} 8... Kf7 {[%clk 0:02:54.8]} 9. Ne5+ {[%clk 0:02:25.2]} 9...
Nxe5 {[%clk 0:02:54.5]} 10. dxe5 {[%clk 0:02:25.2]} 10... Qa5+ {[%clk
0:02:54.4]} 11. c3 {[%clk 0:02:20.4]} 11... Qxe5+ {[%clk 0:02:54.1]} 12. Be3
{[%clk 0:02:21.1]} 12... g5 {[%clk 0:02:37.9]} 13. O-O {[%clk 0:02:18.2]} 13...
Ng4 {[%clk 0:02:36.7]} 1-0

[Event "Early-Titled-Tuesday-Blitz-April-02-2024"]
[Site "Chess.com"]
[Date "2024.04.02"]
[Round "1"]
[White "barbara25"]
[Black "lefonghua"]
[Result "0-1"]
[WhiteElo "2263"]
[BlackElo "2610"]
[TimeControl "180+1"]
[EndTime "8:02:04 PDT"]
[Termination "lefonghua won by resignation"]

1. e4 {[%clk 0:02:59.8]} 1... c5 {[%clk 0:02:59.1]} 2. Nf3 {[%clk 0:02:58.5]}
2... g6 {[%clk 0:02:59.5]} 3. Nc3 {[%clk 0:02:55.1]} 3... Bg7 {[%clk 0:02:59.2]}
4. d4 {[%clk 0:02:55.2]} 4... cxd4 {[%clk 0:03:00.1]} 5. Nxd4 {[%clk 0:02:52.6]}
5... Nc6 {[%clk 0:03:00.6]} 6. Be3 {[%clk 0:02:52]} 6... Nf6 {[%clk 0:03:00.7]}
7. Bc4 {[%clk 0:02:49.8]} 7... Qa5 {[%clk 0:03:00.7]} 8. O-O {[%clk 0:02:45.7]}
8... O-O {[%clk 0:02:59.3]} 9. Nb3 {[%clk 0:02:44.6]} 9... Qd8 {[%clk
0:02:55.6]} 10. h3 {[%clk 0:02:43.2]} 10... d6 {[%clk 0:02:55.4]} 11. Qe2 {[%clk
0:02:38]} 11... Bd7 {[%clk 0:02:50.8]} 12. Rad1 {[%clk 0:02:37]} 12... Rc8
{[%clk 0:02:51.1]} 13. f4 {[%clk 0:02:34]} 13... a6 {[%clk 0:02:38.1]} 14. f5
{[%clk 0:02:33]} 14... Ne5 {[%clk 0:02:30.6]} 15. fxg6 {[%clk 0:02:31.5]} 15...
Nxc4 {[%clk 0:02:24.6]} 16. gxh7+ {[%clk 0:02:31]} 16... Kh8 {[%clk 0:02:23.2]}
17. Bg5 {[%clk 0:02:30.1]} 17... Nxb2 {[%clk 0:02:20.6]} 0-1

[Event "Early-Titled-Tuesday-Blitz-April-02-2024"]
[Site "Chess.com"]
[Date "2024.04.02"]
[Round "1"]
[White "LeninGuerra"]
[Black "LLariMarc"]
[Result "1-0"]
[WhiteElo "2734"]
[BlackElo "2426"]
[TimeControl "180+1"]
[EndTime "8:02:24 PDT"]
[Termination "LeninGuerra won by resignation"]

1. e4 {[%clk 0:03:00.9]} 1... e6 {[%clk 0:02:58.9]} 2. d4 {[%clk 0:03:00.2]}
2... d5 {[%clk 0:02:56.3]} 3. Nd2 {[%clk 0:02:59.2]} 3... dxe4 {[%clk
0:02:51.8]} 4. Nxe4 {[%clk 0:02:58.8]} 4... Nf6 {[%clk 0:02:51.2]} 5. Bg5 {[%clk
0:02:58.1]} 5... Be7 {[%clk 0:02:50.6]} 6. Bxf6 {[%clk 0:02:54.7]} 6... gxf6
{[%clk 0:02:48.7]} 7. Nf3 {[%clk 0:02:54.7]} 7... Nd7 {[%clk 0:02:41.1]} 8. Qd2
{[%clk 0:02:53.4]} 8... Rg8 {[%clk 0:02:37]} 9. O-O-O {[%clk 0:02:52.8]} 9... f5
{[%clk 0:02:35.2]} 10. Ng3 {[%clk 0:02:52.6]} 10... Nb6 {[%clk 0:02:30.8]} 11.
Kb1 {[%clk 0:02:52.3]} 11... Bd7 {[%clk 0:02:28.5]} 12. Qh6 {[%clk 0:02:51.6]}
12... Bf6 {[%clk 0:02:18.4]} 13. Ne5 {[%clk 0:02:41.9]} 13... Qe7 {[%clk
0:02:11.4]} 14. Nh5 {[%clk 0:02:19.6]} 14... Bg7 {[%clk 0:02:08.3]} 15. Nxg7+
{[%clk 0:02:18.7]} 1-0

[Event "Early-Titled-Tuesday-Blitz-April-02-2024"]
[Site "Chess.com"]
[Date "2024.04.02"]
[Round "1"]
[White "Evandro_Barbosa"]
[Black "WindWhistler11"]
[Result "1-0"]
[WhiteElo "2736"]
[BlackElo "2430"]
[TimeControl "180+1"]
[EndTime "8:02:37 PDT"]
[Termination "Evandro_Barbosa won by resignation"]

1. e4 {[%clk 0:03:00.9]} 1... e6 {[%clk 0:02:59.6]} 2. d3 {[%clk 0:03:00.5]}
2... d5 {[%clk 0:03:00.1]} 3. Qe2 {[%clk 0:03:00.1]} 3... Nf6 {[%clk 0:03:00]}
4. Nf3 {[%clk 0:03:00.4]} 4... c5 {[%clk 0:02:59.7]} 5. g3 {[%clk 0:03:00.7]}
5... Nc6 {[%clk 0:03:00.1]} 6. Bg2 {[%clk 0:03:00.9]} 6... g6 {[%clk 0:03:00.4]}
7. Bg5 {[%clk 0:02:57.9]} 7... h6 {[%clk 0:02:47.2]} 8. Bxf6 {[%clk 0:02:44.8]}
8... Qxf6 {[%clk 0:02:48.1]} 9. exd5 {[%clk 0:02:29.5]} 9... Qxb2 {[%clk
0:02:47.2]} 10. dxc6 {[%clk 0:02:28]} 10... Qxa1 {[%clk 0:02:46]} 11. O-O {[%clk
0:02:25.4]} 11... Bg7 {[%clk 0:02:26.1]} 12. Nfd2 {[%clk 0:02:24.1]} 12... Rb8
{[%clk 0:02:18.6]} 13. Nb3 {[%clk 0:02:09.3]} 13... bxc6 {[%clk 0:02:05.8]} 14.
Bxc6+ {[%clk 0:02:05.2]} 14... Kf8 {[%clk 0:02:05.1]} 15. Nxa1 {[%clk
0:02:03.9]} 1-0

[Event "Early-Titled-Tuesday-Blitz-April-02-2024"]
[Site "Chess.com"]
[Date "2024.04.02"]
[Round "1"]
[White "DenLaz"]
[Black "Agent-JL"]
[Result "1-0"]
[WhiteElo "3112"]
[BlackElo "2547"]
[TimeControl "180+1"]
[EndTime "8:02:58 PDT"]
[Termination "DenLaz won by resignation"]

1. d4 {[%clk 0:03:00.9]} 1... Nf6 {[%clk 0:02:58.2]} 2. c4 {[%clk 0:03:01.5]}
2... e6 {[%clk 0:02:58.6]} 3. Nf3 {[%clk 0:03:02.1]} 3... d5 {[%clk 0:02:59]} 4.
g3 {[%clk 0:03:02.8]} 4... Be7 {[%clk 0:02:59.4]} 5. Bg2 {[%clk 0:03:03.4]} 5...
O-O {[%clk 0:02:59.9]} 6. O-O {[%clk 0:03:04.1]} 6... c5 {[%clk 0:02:54.2]} 7.
cxd5 {[%clk 0:03:03.1]} 7... Nxd5 {[%clk 0:02:52.2]} 8. dxc5 {[%clk 0:03:01]}
8... Na6 {[%clk 0:02:47.5]} 9. a3 {[%clk 0:02:52.2]} 9... Nxc5 {[%clk
0:02:33.9]} 10. b4 {[%clk 0:02:52.1]} 10... Ne4 {[%clk 0:02:33.6]} 11. Bb2
{[%clk 0:02:49.3]} 11... Bf6 {[%clk 0:02:33.6]} 12. Nd4 {[%clk 0:02:41.1]} 12...
Nd6 {[%clk 0:02:26.4]} 13. Nd2 {[%clk 0:02:41]} 13... Nb6 {[%clk 0:02:19.4]} 14.
Rc1 {[%clk 0:02:39.5]} 14... Nf5 {[%clk 0:02:18.4]} 15. N2b3 {[%clk 0:02:36.6]}
15... Nd6 {[%clk 0:02:00.9]} 16. Na5 {[%clk 0:02:32.8]} 16... Qe7 {[%clk
0:01:58.5]} 17. Qc2 {[%clk 0:02:23]} 17... Rd8 {[%clk 0:01:55.4]} 18. Rfd1
{[%clk 0:02:22.7]} 18... e5 {[%clk 0:01:53.9]} 19. Ndc6 {[%clk 0:02:20]} 19...
bxc6 {[%clk 0:01:52.5]} 20. Nxc6 {[%clk 0:02:20.9]} 20... Qd7 {[%clk 0:01:43.1]}
21. Nxd8 {[%clk 0:02:20.2]} 1-0

[Event "Early-Titled-Tuesday-Blitz-April-02-2024"]
[Site "Chess.com"]
[Date "2024.04.02"]
[Round "1"]
[White "Rosh1610"]
[Black "chito89"]
[Result "0-1"]
[WhiteElo "2486"]
[BlackElo "2815"]
[TimeControl "180+1"]
[EndTime "8:03:37 PDT"]
[Termination "chito89 won by resignation"]

1. e4 {[%clk 0:03:00.9]} 1... c6 {[%clk 0:02:50.1]} 2. Nc3 {[%clk 0:02:56.2]}
2... d5 {[%clk 0:02:49.8]} 3. Nf3 {[%clk 0:02:54.8]} 3... Bg4 {[%clk 0:02:45.5]}
4. h3 {[%clk 0:02:54.3]} 4... Bxf3 {[%clk 0:02:46.2]} 5. Qxf3 {[%clk 0:02:55]}
5... e6 {[%clk 0:02:47.1]} 6. Be2 {[%clk 0:02:52]} 6... g6 {[%clk 0:02:39.5]} 7.
O-O {[%clk 0:02:44.6]} 7... Bg7 {[%clk 0:02:39.9]} 8. d3 {[%clk 0:02:39.6]} 8...
Nd7 {[%clk 0:02:38.6]} 9. exd5 {[%clk 0:02:38.2]} 9... cxd5 {[%clk 0:02:35.6]}
10. Bf4 {[%clk 0:02:14.1]} 10... Ne7 {[%clk 0:02:28.4]} 11. Nb5 {[%clk
0:02:08.8]} 11... O-O {[%clk 0:02:08.8]} 12. Bc7 {[%clk 0:02:08.3]} 12... Qc8
{[%clk 0:02:06.6]} 13. Bd6 {[%clk 0:02:08.5]} 13... Ne5 {[%clk 0:01:53]} 14. Qg3
{[%clk 0:01:58.5]} 14... Nf5 {[%clk 0:01:51.7]} 15. Qf4 {[%clk 0:01:55]} 15...
Nxd6 {[%clk 0:01:48.5]} 16. Nxd6 {[%clk 0:01:55.9]} 16... Qxc2 {[%clk
0:01:48.9]} 17. Rfe1 {[%clk 0:01:53.7]} 17... Nxd3 {[%clk 0:01:33.7]} 18. Bxd3
{[%clk 0:01:51.3]} 18... Qxd3 {[%clk 0:01:34.6]} 19. Nxb7 {[%clk 0:01:50.7]} 0-1

[Event "Early-Titled-Tuesday-Blitz-April-02-2024"]
[Site "Chess.com"]
[Date "2024.04.02"]
[Round "1"]
[White "DreamsAreFake"]
[Black "Cheer_Down"]
[Result "1-0"]
[WhiteElo "2748"]
[BlackElo "2436"]
[TimeControl "180+1"]
[EndTime "8:04:14 PDT"]
[Termination "DreamsAreFake won by resignation"]

1. Nf3 {[%clk 0:03:00.9]} 1... d5 {[%clk 0:02:58.1]} 2. g3 {[%clk 0:03:00.2]}
2... Nf6 {[%clk 0:02:57.9]} 3. Bg2 {[%clk 0:03:00.8]} 3... e6 {[%clk 0:02:58.4]}
4. O-O {[%clk 0:02:58.9]} 4... Be7 {[%clk 0:02:58.6]} 5. b3 {[%clk 0:02:58.7]}
5... O-O {[%clk 0:02:57.1]} 6. Bb2 {[%clk 0:02:54.5]} 6... b6 {[%clk 0:02:56]}
7. d3 {[%clk 0:02:51.7]} 7... Bb7 {[%clk 0:02:55]} 8. Nbd2 {[%clk 0:02:52.4]}
8... c5 {[%clk 0:02:50.6]} 9. e3 {[%clk 0:02:53.1]} 9... Nc6 {[%clk 0:02:48]}
10. Qe2 {[%clk 0:02:51.4]} 10... Qc7 {[%clk 0:02:45.3]} 11. c4 {[%clk
0:02:48.5]} 11... Rad8 {[%clk 0:02:41.3]} 12. Rad1 {[%clk 0:02:42.6]} 12... dxc4
{[%clk 0:02:35.7]} 13. Nxc4 {[%clk 0:02:42.1]} 13... Nd5 {[%clk 0:02:31.5]} 14.
a3 {[%clk 0:02:41.3]} 14... Rfe8 {[%clk 0:02:30.2]} 15. d4 {[%clk 0:02:40.9]}
15... cxd4 {[%clk 0:02:29.8]} 16. Nxd4 {[%clk 0:02:41]} 16... Nxd4 {[%clk
0:02:29.8]} 17. Bxd4 {[%clk 0:02:41.9]} 17... b5 {[%clk 0:02:21.5]} 18. Ne5
{[%clk 0:02:36.8]} 18... Bxa3 {[%clk 0:02:13.3]} 19. Qxb5 {[%clk 0:02:30.4]}
19... f6 {[%clk 0:01:51.9]} 20. Nc4 {[%clk 0:02:28]} 20... Bf8 {[%clk 0:01:42]}
21. Qa5 {[%clk 0:02:23.2]} 21... Nb6 {[%clk 0:01:32.2]} 22. Qxa7 {[%clk
0:01:38.8]} 22... Nxc4 {[%clk 0:01:32.1]} 23. bxc4 {[%clk 0:01:38.5]} 23... Rb8
{[%clk 0:01:28.6]} 24. Rb1 {[%clk 0:01:37.2]} 1-0

[Event "Early-Titled-Tuesday-Blitz-April-02-2024"]
[Site "Chess.com"]
[Date "2024.04.02"]
[Round "1"]
[White "Aygehovit1992"]
[Black "Logman74"]
[Result "1-0"]
[WhiteElo "2865"]
[BlackElo "2502"]
[TimeControl "180+1"]
[EndTime "8:04:29 PDT"]
[Termination "Aygehovit1992 won on time"]

1. e4 {[%clk 0:03:00.9]} 1... c5 {[%clk 0:02:57.8]} 2. Nf3 {[%clk 0:03:00.2]}
2... d6 {[%clk 0:02:57.3]} 3. d4 {[%clk 0:03:00.9]} 3... cxd4 {[%clk 0:02:57.5]}
4. Nxd4 {[%clk 0:03:01.8]} 4... Nf6 {[%clk 0:02:57.5]} 5. Nc3 {[%clk 0:03:02.5]}
5... Nc6 {[%clk 0:02:57.9]} 6. Bg5 {[%clk 0:03:01.4]} 6... e6 {[%clk 0:02:58.2]}
7. Bb5 {[%clk 0:02:58.2]} 7... Bd7 {[%clk 0:02:57.4]} 8. Bxc6 {[%clk 0:02:49.4]}
8... bxc6 {[%clk 0:02:56.7]} 9. Qd3 {[%clk 0:02:47.7]} 9... Be7 {[%clk
0:02:54.2]} 10. O-O-O {[%clk 0:02:41.8]} 10... O-O {[%clk 0:02:49]} 11. e5
{[%clk 0:02:41.8]} 11... dxe5 {[%clk 0:02:46.9]} 12. Nf3 {[%clk 0:02:39.6]}
12... Nd5 {[%clk 0:02:47.2]} 13. h4 {[%clk 0:02:31.3]} 13... Rb8 {[%clk
0:02:27]} 14. Nxe5 {[%clk 0:02:24.2]} 14... Bxg5+ {[%clk 0:02:22.9]} 15. hxg5
{[%clk 0:02:24.4]} 15... Qxg5+ {[%clk 0:02:22.8]} 16. Kb1 {[%clk 0:02:24.7]}
16... Qf5 {[%clk 0:01:33]} 17. Nxd7 {[%clk 0:02:20.6]} 1-0

[Event "Early-Titled-Tuesday-Blitz-April-02-2024"]
[Site "Chess.com"]
[Date "2024.04.02"]
[Round "1"]
[White "Kopytkin"]
[Black "Sl4werThanYou"]
[Result "0-1"]
[WhiteElo "2409"]
[BlackElo "2716"]
[TimeControl "180+1"]
[EndTime "8:04:36 PDT"]
[Termination "Sl4werThanYou won on time"]

1. d4 {[%clk 0:03:00.9]} 1... d5 {[%clk 0:02:56.8]} 2. Bg5 {[%clk 0:03:00.8]}
2... f6 {[%clk 0:02:51.2]} 3. Bd2 {[%clk 0:02:59.6]} 3... e5 {[%clk 0:02:47.3]}
4. dxe5 {[%clk 0:02:43.5]} 4... fxe5 {[%clk 0:02:47.5]} 5. e4 {[%clk 0:02:43.6]}
5... dxe4 {[%clk 0:02:37]} 6. Qh5+ {[%clk 0:02:40.9]} 6... Ke7 {[%clk
0:02:31.7]} 7. Qxe5+ {[%clk 0:02:25.9]} 7... Be6 {[%clk 0:02:32.3]} 8. Nc3
{[%clk 0:02:06.5]} 8... Nc6 {[%clk 0:02:30.7]} 9. Qxe4 {[%clk 0:02:06.2]} 9...
Nf6 {[%clk 0:02:31]} 10. Bg5 {[%clk 0:02:04.4]} 10... Kf7 {[%clk 0:02:31]} 11.
Bxf6 {[%clk 0:01:23.3]} 11... Qxf6 {[%clk 0:02:31.9]} 12. Bc4 {[%clk 0:01:01.9]}
12... Re8 {[%clk 0:02:30.1]} 13. O-O-O {[%clk 0:00:58.3]} 13... Bd6 {[%clk
0:02:25.4]} 14. Nf3 {[%clk 0:00:55.3]} 14... Qf4+ {[%clk 0:02:20.8]} 15. Kb1
{[%clk 0:00:07.5]} 15... Qxe4 {[%clk 0:02:20.3]} 16. Ng5+ {[%clk 0:00:05.4]}
16... Kg6 {[%clk 0:02:18.7]} 17. Ngxe4 {[%clk 0:00:02.7]} 17... Bxc4 {[%clk
0:02:19.6]} 18. Rxd6+ {[%clk 0:00:01]} 18... cxd6 {[%clk 0:02:20.5]} 19. Nxd6
{[%clk 0:00:01.3]} 19... Re6 {[%clk 0:02:21.4]} 20. Nxc4 {[%clk 0:00:01.2]}
20... Rf8 {[%clk 0:02:21.9]} 21. b3 {[%clk 0:00:01.7]} 21... Rxf2 {[%clk
0:02:21.7]} 0-1

[Event "Early-Titled-Tuesday-Blitz-April-02-2024"]
[Site "Chess.com"]
[Date "2024.04.02"]
[Round "1"]
[White "Blackwhite017"]
[Black "Likvidator228"]
[Result "0-1"]
[WhiteElo "2083"]
[BlackElo "2565"]
[TimeControl "180+1"]
[EndTime "8:04:37 PDT"]
[Termination "Likvidator228 won by resignation"]

1. e4 {[%clk 0:02:51.9]} 1... c5 {[%clk 0:02:59.5]} 2. Nf3 {[%clk 0:02:51.7]}
2... g6 {[%clk 0:02:58.6]} 3. d4 {[%clk 0:02:51.2]} 3... cxd4 {[%clk 0:02:59.5]}
4. Nxd4 {[%clk 0:02:51.7]} 4... Bg7 {[%clk 0:02:59.6]} 5. Nc3 {[%clk 0:02:51.2]}
5... Nc6 {[%clk 0:03:00.2]} 6. Be3 {[%clk 0:02:51.2]} 6... Nf6 {[%clk
0:03:00.4]} 7. Nxc6 {[%clk 0:02:51]} 7... bxc6 {[%clk 0:03:00.7]} 8. e5 {[%clk
0:02:51]} 8... Nd5 {[%clk 0:03:01]} 9. Nxd5 {[%clk 0:02:51.1]} 9... cxd5 {[%clk
0:03:01.9]} 10. Qxd5 {[%clk 0:02:51.2]} 10... Rb8 {[%clk 0:03:02.5]} 11. O-O-O
{[%clk 0:02:49.9]} 11... Bb7 {[%clk 0:02:59]} 12. Qc5 {[%clk 0:02:42.9]} 12...
O-O {[%clk 0:02:57.3]} 13. Bb5 {[%clk 0:02:23.7]} 13... d6 {[%clk 0:02:56.9]}
14. exd6 {[%clk 0:01:53.8]} 14... exd6 {[%clk 0:02:57]} 15. Rxd6 {[%clk
0:01:44.7]} 15... Qa5 {[%clk 0:02:54.7]} 16. Bc4 {[%clk 0:01:22.4]} 16... Qxc5
{[%clk 0:02:49.7]} 17. Bxc5 {[%clk 0:01:23.3]} 17... Bxg2 {[%clk 0:02:50.2]} 18.
Re1 {[%clk 0:01:07.7]} 18... Bxb2+ {[%clk 0:02:50.3]} 19. Kd2 {[%clk 0:00:59.2]}
19... Rbc8 {[%clk 0:02:38.6]} 20. Bd4 {[%clk 0:00:07.8]} 20... Ba3 {[%clk
0:02:21.4]} 21. Bb3 {[%clk 0:00:06.8]} 21... Bxd6 {[%clk 0:02:20.8]} 0-1

[Event "Early-Titled-Tuesday-Blitz-April-02-2024"]
[Site "Chess.com"]
[Date "2024.04.02"]
[Round "1"]
[White "VeraVujovic"]
[Black "SahibSinghKnight"]
[Result "0-1"]
[WhiteElo "2206"]
[BlackElo "2596"]
[TimeControl "180+1"]
[EndTime "8:04:42 PDT"]
[Termination "SahibSinghKnight won by resignation"]

1. d4 {[%clk 0:03:00.9]} 1... d5 {[%clk 0:02:57.3]} 2. c4 {[%clk 0:02:59.4]}
2... e6 {[%clk 0:02:56.8]} 3. Nc3 {[%clk 0:02:59.2]} 3... c6 {[%clk 0:02:56.2]}
4. e4 {[%clk 0:02:58.8]} 4... dxe4 {[%clk 0:02:56.4]} 5. Nxe4 {[%clk 0:02:59.5]}
5... Bb4+ {[%clk 0:02:56.8]} 6. Bd2 {[%clk 0:02:58.6]} 6... Qxd4 {[%clk
0:02:57.1]} 7. Bxb4 {[%clk 0:02:58]} 7... Qxe4+ {[%clk 0:02:56.9]} 8. Ne2 {[%clk
0:02:58.5]} 8... Na6 {[%clk 0:02:57.1]} 9. Bc3 {[%clk 0:02:58.1]} 9... f6 {[%clk
0:02:51.2]} 10. b3 {[%clk 0:02:57.8]} 10... Bd7 {[%clk 0:02:40.5]} 11. f3 {[%clk
0:02:42.6]} 11... Qe3 {[%clk 0:02:38]} 12. Bd4 {[%clk 0:02:39.8]} 12... Qh6
{[%clk 0:02:33.1]} 13. Qd3 {[%clk 0:02:39.4]} 13... Qg6 {[%clk 0:02:32.3]} 14.
Qd2 {[%clk 0:02:37.3]} 14... Nh6 {[%clk 0:02:21.5]} 15. Nf4 {[%clk 0:02:31.7]}
15... Qf7 {[%clk 0:02:18.2]} 16. Be3 {[%clk 0:02:18.8]} 16... Nf5 {[%clk
0:02:11.5]} 17. O-O-O {[%clk 0:02:14.6]} 17... Nxe3 {[%clk 0:02:10.7]} 18. Qxe3
{[%clk 0:02:15.5]} 18... O-O {[%clk 0:02:01.9]} 19. c5 {[%clk 0:02:11.1]} 19...
Nb4 {[%clk 0:01:59.7]} 20. Bc4 {[%clk 0:02:07.4]} 20... Nd5 {[%clk 0:01:59.2]}
21. Qd4 {[%clk 0:01:55.8]} 21... b5 {[%clk 0:01:41.2]} 22. cxb6 {[%clk
0:01:50.1]} 22... axb6 {[%clk 0:01:41.4]} 23. b4 {[%clk 0:01:39.9]} 23... Kh8
{[%clk 0:01:31.7]} 24. Bb3 {[%clk 0:01:37.1]} 24... e5 {[%clk 0:01:25.7]} 25.
Bxd5 {[%clk 0:01:27.5]} 25... cxd5 {[%clk 0:01:24.9]} 26. Qxd5 {[%clk
0:01:23.6]} 26... exf4 {[%clk 0:01:24.9]} 27. Qxd7 {[%clk 0:01:19.8]} 27... Qc4+
{[%clk 0:01:23]} 0-1

[Event "Early-Titled-Tuesday-Blitz-April-02-2024"]
[Site "Chess.com"]
[Date "2024.04.02"]
[Round "1"]
[White "Dacean99"]
[Black "inagreV"]
[Result "1-0"]
[WhiteElo "2671"]
[BlackElo "2376"]
[TimeControl "180+1"]
[EndTime "8:04:46 PDT"]
[Termination "Dacean99 won by resignation"]

1. e4 {[%clk 0:03:00.3]} 1... c5 {[%clk 0:03:00]} 2. c3 {[%clk 0:03:00.1]} 2...
Nf6 {[%clk 0:02:59.2]} 3. e5 {[%clk 0:03:00.1]} 3... Nd5 {[%clk 0:02:59.6]} 4.
Nf3 {[%clk 0:03:00.7]} 4... Nc6 {[%clk 0:02:58.5]} 5. Bc4 {[%clk 0:03:01.1]}
5... Nb6 {[%clk 0:02:58.5]} 6. Bb3 {[%clk 0:03:01.3]} 6... d5 {[%clk 0:02:53.5]}
7. exd6 {[%clk 0:03:00.7]} 7... Qxd6 {[%clk 0:02:53.7]} 8. O-O {[%clk
0:03:01.1]} 8... Bg4 {[%clk 0:02:53]} 9. Re1 {[%clk 0:02:59.3]} 9... e6 {[%clk
0:02:51.3]} 10. Na3 {[%clk 0:02:52.9]} 10... Be7 {[%clk 0:02:49.7]} 11. h3
{[%clk 0:02:49.3]} 11... Bh5 {[%clk 0:02:49.2]} 12. d4 {[%clk 0:02:44.6]} 12...
cxd4 {[%clk 0:02:47.5]} 13. Nb5 {[%clk 0:02:44.9]} 13... Qb8 {[%clk 0:02:42]}
14. Nbxd4 {[%clk 0:02:43.5]} 14... Nxd4 {[%clk 0:02:41.2]} 15. Qxd4 {[%clk
0:02:43]} 15... O-O {[%clk 0:02:36.9]} 16. Bf4 {[%clk 0:02:34.8]} 16... Qc8
{[%clk 0:02:35.5]} 17. Ne5 {[%clk 0:02:31.9]} 17... Rd8 {[%clk 0:02:25.6]} 18.
Qe4 {[%clk 0:02:29.1]} 18... Nd5 {[%clk 0:02:23.5]} 19. Bh2 {[%clk 0:02:20.5]}
19... Bf6 {[%clk 0:02:20.2]} 20. c4 {[%clk 0:02:15.4]} 20... Nb4 {[%clk
0:02:08.3]} 21. a3 {[%clk 0:02:09.3]} 21... Nc6 {[%clk 0:02:00]} 22. Bc2 {[%clk
0:02:01.5]} 22... Bg6 {[%clk 0:01:56.7]} 23. Nxg6 {[%clk 0:02:01]} 23... hxg6
{[%clk 0:01:57.6]} 24. Rab1 {[%clk 0:01:52.3]} 24... Rd4 {[%clk 0:01:53.2]} 25.
Qe2 {[%clk 0:01:52.2]} 25... Qf8 {[%clk 0:01:51.2]} 26. b4 {[%clk 0:01:48]}
26... Rad8 {[%clk 0:01:50.2]} 27. Rbd1 {[%clk 0:01:47.5]} 27... a5 {[%clk
0:01:47.8]} 28. b5 {[%clk 0:01:40.9]} 28... Nb8 {[%clk 0:01:47.3]} 29. Rxd4
{[%clk 0:01:33.7]} 29... Bxd4 {[%clk 0:01:44.1]} 30. Rd1 {[%clk 0:01:33.8]}
30... Qxa3 {[%clk 0:01:41.1]} 31. Bxb8 {[%clk 0:01:30]} 31... e5 {[%clk
0:01:23.2]} 32. Bxe5 {[%clk 0:01:16.5]} 1-0

[Event "Early-Titled-Tuesday-Blitz-April-02-2024"]
[Site "Chess.com"]
[Date "2024.04.02"]
[Round "1"]
[White "Zq1"]
[Black "kritipatel"]
[Result "1-0"]
[WhiteElo "2607"]
[BlackElo "2250"]
[TimeControl "180+1"]
[EndTime "8:04:53 PDT"]
[Termination "Zq1 won by resignation"]

1. d4 {[%clk 0:03:00.9]} 1... d5 {[%clk 0:02:57.8]} 2. c4 {[%clk 0:03:00.5]}
2... e6 {[%clk 0:02:58]} 3. Nc3 {[%clk 0:02:59.3]} 3... Nf6 {[%clk 0:02:58.6]}
4. Nf3 {[%clk 0:02:58.2]} 4... Be7 {[%clk 0:02:57.9]} 5. g3 {[%clk 0:02:57.5]}
5... O-O {[%clk 0:02:57.7]} 6. Bg2 {[%clk 0:02:57.6]} 6... dxc4 {[%clk
0:02:57.4]} 7. O-O {[%clk 0:02:53.6]} 7... a6 {[%clk 0:02:56.1]} 8. Ne5 {[%clk
0:02:52.1]} 8... c5 {[%clk 0:02:38.3]} 9. dxc5 {[%clk 0:02:49.8]} 9... Bxc5
{[%clk 0:02:38.3]} 10. Nxc4 {[%clk 0:02:46]} 10... Qc7 {[%clk 0:02:33.3]} 11.
Bf4 {[%clk 0:02:44.4]} 11... Qe7 {[%clk 0:02:31.3]} 12. Bd6 {[%clk 0:02:39.9]}
12... Bxd6 {[%clk 0:02:28.7]} 13. Qxd6 {[%clk 0:02:39.2]} 13... Qxd6 {[%clk
0:02:23.4]} 14. Nxd6 {[%clk 0:02:39]} 14... Nc6 {[%clk 0:02:24]} 15. Na4 {[%clk
0:02:28.6]} 15... Rd8 {[%clk 0:02:18.4]} 16. Nb6 {[%clk 0:02:26.4]} 16... Rb8
{[%clk 0:02:10.5]} 17. Ndxc8 {[%clk 0:02:22.2]} 17... Rbxc8 {[%clk 0:01:47.7]}
18. Nxc8 {[%clk 0:02:20.5]} 18... Rxc8 {[%clk 0:01:48.6]} 19. Bxc6 {[%clk
0:02:14.3]} 19... bxc6 {[%clk 0:01:42.8]} 20. Rac1 {[%clk 0:02:11.2]} 20... h6
{[%clk 0:01:42.9]} 21. Rfd1 {[%clk 0:02:06.3]} 21... c5 {[%clk 0:01:41.4]} 22.
Rc4 {[%clk 0:02:01.8]} 22... Kf8 {[%clk 0:01:36.2]} 23. Rdc1 {[%clk 0:01:59.3]}
23... Nd7 {[%clk 0:01:34.9]} 24. b4 {[%clk 0:01:57.8]} 24... Ke7 {[%clk
0:01:31.4]} 25. bxc5 {[%clk 0:01:57.7]} 25... Ne5 {[%clk 0:01:31.4]} 26. Ra4
{[%clk 0:01:51.2]} 26... Rc6 {[%clk 0:01:30.3]} 27. Rb4 {[%clk 0:01:51.1]} 27...
Nd7 {[%clk 0:01:29.4]} 28. Rb7 {[%clk 0:01:48.1]} 28... Kd8 {[%clk 0:01:26.1]}
29. Rd1 {[%clk 0:01:46.1]} 29... Rc7 {[%clk 0:01:18.4]} 30. c6 {[%clk
0:01:45.2]} 30... Rxb7 {[%clk 0:00:51.1]} 31. cxb7 {[%clk 0:01:44.1]} 31... Kc7
{[%clk 0:00:51.6]} 32. Rxd7+ {[%clk 0:01:41.6]} 1-0